[Event "WSTCC-50 2024"]
[Site "Krakow"]
[Date "2024.07.07"]
[Round "6.15"]
[White "Mai, Iris"]
[Black "Czyz, Andrzej"]
[Result "1/2-1/2"]
[ECO "A04"]
[WhiteElo "1972"]
[BlackElo "1921"]
[Annotator "RC"]
[PlyCount "118"]
[EventDate "2024.07.01"]
[EventType "team-tourn"]
[EventCountry "POL"]
[SourceTitle "playchess.com"]
[Source "ChessBase"]
[SourceQuality "1"]
[TimeControl "40/5400+30:1800+30"]

1. Nf3 {[%emt 0:00:03]} f5 {[%emt 0:00:46]} 2. g3 {[%emt 0:01:20]} Nf6 {[%emt 0:00:19]} 3. Bg2 {[%emt 0:00:07]} g6 {[%emt 0:00:22]} 4. O-O {[%emt 0:01:18]} Bg7 {[%emt 0:00:09]} 5. d3 {[%emt 0:08:52]} d6 {[%emt 0:01:32]} 6. c3 {[%emt 0:08:02]} e5 {[%emt 0:02:14]} 7. Qb3 {[%emt 0:04:41]} Qe7 {[%emt 0:07:40]} 8. e4 {[%emt 0:07:31]} fxe4 {[%emt 0:04:02]} 9. dxe4 {[%emt 0:00:09]} Nbd7 {[%emt 0:04:18]} 10. Nfd2 {[%emt 0:22:23]} Nc5 {[%emt 0:02:48]} 11. Qc4 {[%emt 0:02:59]} Be6 {[%emt 0:02:19]} 12. Qe2 {[%emt 0:00:06]} a5 {[%emt 0:00:40]} 13. b3 {[%emt 0:05:25]} O-O {[%emt 0:01:09]} 14. Ba3 {[%emt 0:01:11]} Ncd7 {[%emt 0:03:49]} 15. Nc4 {[%emt 0:02:25]} a4 {[%emt 0:08:15]} 16. Nbd2 {[%emt 0:00:08]} axb3 {[%emt 0:01:35]} 17. axb3 {[%emt 0:00:02]} Qf7 {[%emt 0:00:41]} 18. b4 {[%emt 0:03:07]} Ra6 {[%emt 0:03:42]} 19. Bb2 {[%emt 0:06:34]} Rfa8 {[%emt 0:06:26]} 20. Rxa6 {[%emt 0:01:06]} Rxa6 {[%emt 0:00:12]} 21. Ra1 {[%emt 0:00:17]} Rxa1+ {[%emt 0:01:07]} 22. Bxa1 {[%emt 0:00:06]} Bh6 {[%emt 0:03:46]} 23. f3 {[%emt 0:13:02]} b5 {[%emt 0:08:44]} 24. Na3 {[%emt 0:02:31]} c6 {[%emt 0:02:12]} 25. Bb2 {[%emt 0:03:57]} Nb6 {[%emt 0:01:09]} 26. h4 {[%emt 0:03:55]} Na4 {[%emt 0:00:46]} 27. Nf1 {[%emt 0:00:07]} Nxc3 {[%emt 0:01:37]} 28. Bxc3 {[%emt 0:00:17]} Qa7+ {[%emt 0:00:12]} 29. Kh2 {[%emt 0:00:14]} Qxa3 {[%emt 0:00:09]} 30. Be1 {[%emt 0:00:16]} Bc4 {[%emt 0:00:53]} 31. Qd1 {[%emt 0:00:41]} d5 {[%emt 0:00:43]} 32. Nd2 {[%emt 0:00:29]} Qxb4 {[%emt 0:01:21]} 33. Nxc4 {[%emt 0:00:46]} Qxc4 {[%emt 0:00:24]} 34. Qa1 {[%emt 0:00:25]} d4 {[%emt 0:01:20]} 35. Qa8+ {[%emt 0:00:26]} Bf8 {[%emt 0:00:38]} 36. Bd2 {[%emt 0:00:18]} Kf7 {[%emt 0:00:36]} 37. Qb7+ {[%emt 0:01:31]} Be7 {[%emt 0:00:07]} 38. Qc7 {[%emt 0:00:55]} Qe6 {[%emt 0:00:50]} 39. Bh6 {[%emt 0:01:05]} Ne8 {[%emt 0:01:55]} 40. Qb8 {[%emt 0:00:23]} Qd6 {[%emt 0:00:52]} 41. Qa8 {[%emt 0:02:34]} d3 {[%emt 0:05:46]} 42. Qa2+ {[%emt 0:04:56]} Qe6 {[%emt 0:00:15]} 43. Qd2 {[%emt 0:00:22]} Qc4 {[%emt 0:00:34]} 44. Bf1 {[%emt 0:00:19]} Qc2 {[%emt 0:01:24]} 45. Bxd3 {[%emt 0:00:07]} Qxd2+ {[%emt 0:00:45]} 46. Bxd2 {[%emt 0:00:06]} Ba3 {[%emt 0:00:23]} 47. f4 {[%emt 0:02:12]} exf4 {[%emt 0:01:47]} 48. gxf4 {[%emt 0:00:17]} Ke6 {[%emt 0:03:21]} 49. h5 {[%emt 0:05:19]} Nd6 {[%emt 0:01:57]} 50. Kh3 {[%emt 0:11:19]} Bb2 {[%emt 0:07:32]} 51. hxg6 {[%emt 0:01:02]} hxg6 {[%emt 0:00:02]} 52. Kg4 {[%emt 0:00:08]} Nc4 {[%emt 0:02:00]} 53. Bb4 {[%emt 0:02:24]} Bd4 {[%emt 0:02:34]} 54. Kg5 {[%emt 0:00:32]} Kf7 {[%emt 0:00:27]} 55. e5 {[%emt 0:00:58]} Nxe5 {[%emt 0:07:29]} 56. fxe5 {[%emt 0:00:11]} Bxe5 {[%emt 0:00:03]} 57. Bxg6+ {[%emt 0:00:06]} Ke6 {[%emt 0:00:30]} 58. Be4 {[%emt 0:00:05]} Bd6 {[%emt 0:01:27]} 59. Bxc6 {[%emt 0:00:27]} Bxb4 1/2-1/2

[Event "WSTCC-50 2024"]
[Site "Krakow"]
[Date "2024.07.07"]
[Round "6.16"]
[White "Davies, Nigel R"]
[Black "Koganov, Mikhail"]
[Result "1/2-1/2"]
[ECO "D21"]
[WhiteElo "2325"]
[BlackElo "2177"]
[Annotator "TA"]
[PlyCount "60"]
[EventDate "2024.07.01"]
[EventType "team-tourn"]
[EventCountry "POL"]
[SourceTitle "playchess.com"]
[Source "ChessBase"]
[SourceQuality "1"]
[TimeControl "40/5400+30:1800+30"]

{[%evp 14,60,46,42,29,42,62,72,54,55,54,10,43,0,0,6,5,4,31,27,30,24,27,29,26,6,20,11,9,14,27,25,24,28,28,0,0,0,0,0,0,0,8,0,0,0,0,0,0]} 1. d4 {[%emt 0:00:07]} d5 {[%emt 0:00:15][%cal Bd7d5,Bd5c4][%mdl 32]} 2. c4 {[%emt 0:00:21]} dxc4 {[%emt 0:00:25]} 3. Nf3 {[%emt 0:00:33]} c5 {[%emt 0:01:07]} 4. e4 {[%emt 0:00:53]} cxd4 {[%emt 0:00:24]} 5. Qxd4 {[%emt 0:00:16]} Qxd4 {[%emt 0:03:38]} 6. Nxd4 {[%emt 0:00:08]} Bd7 {[%emt 0:04:01]} 7. Bxc4 {[%emt 0:02:25]} Nc6 {[%emt 0:00:08]} 8. Be3 {[%emt 0:03:18]} Nxd4 {[%emt 0:16:47]} 9. Bxd4 {[%emt 0:00:08]} Rc8 {[%emt 0:01:30]} 10. Nd2 {[%emt 0:00:12][%cal Oe1g1] White is more active.} a6 {[%emt 0:00:41] White is better.} 11. Ke2 {[%emt 0:02:16]} e6 {[%emt 0:00:39] Against Bd5} 12. Bd3 {[%emt 0:13:21]} Ne7 $1 {[%emt 0:02:40][%cal Bg8e7,Be7c6,Bc6b4][%mdl 32]} 13. Nc4 {[%emt 0:09:40] [#] aiming for Nd6+.} Nc6 {[%emt 0:03:00]} 14. Be3 {[%emt 0:00:08]} Nb4 {[%emt 0:00:41]} 15. Nb6 {[%emt 0:00:34]} Rc6 {[%emt 0:03:21]} 16. Nxd7 {[%emt 0:04:05]} Kxd7 {[%emt 0:00:23]} 17. Rhd1 {[%emt 0:00:47]} Nxd3 {[%emt 0:02:30]} 18. Rxd3+ {[%emt 0:00:08]} Kc8 {[%emt 0:00:44]} 19. Rad1 {[%emt 0:01:14]} Be7 {[%emt 0:00:19] Wards off Rd8+} 20. Rd7 {[%emt 0:02:46]} Re8 {[%emt 0:03:03]} 21. R1d2 {[%emt 0:07:18]} Rc7 {[%emt 0:00:57]} 22. Rxc7+ {[%emt 0:01:43]} Kxc7 $11 {[%emt 0:00:05][%mdl 4096] Endgame. KRB-KRB} 23. Bf4+ {[%emt 0:00:19]} Kb6 {[%emt 0:06:20]} 24. Rd7 {[%emt 0:03:03]} f6 {[%emt 0:00:19] The position is equal.} 25. b3 {[%emt 0:06:50]} e5 {[%emt 0:00:58]} 26. Be3+ {[%emt 0:00:07]} Kc6 {[%emt 0:00:18]} 27. Rd2 {[%emt 0:00:08]} b6 {[%emt 0:01:23]} 28. g3 {[%emt 0:06:04]} Rd8 {[%emt 0:01:11]} 29. Rc2+ {[%emt 0:00:37]} Kb7 {[%emt 0:00:23]} 30. h4 {[%emt 0:01:29]} Rd6 {[%emt 0:04:50] Weighted Error Value: White=0.07 (flawless) /Black=0.04 (flawless) .  Inaccurate:     	White=3     	Black=1      OK:         	White=8     	Black=11     Best:        	---       	Black=3      Strong:       	---       	Black=1} 1/2-1/2

[Event "WSTCC-50 2024"]
[Site "Krakow"]
[Date "2024.07.07"]
[Round "6.16"]
[White "Wielosz, Jaroslaw"]
[Black "Jahn, Constanze"]
[Result "1/2-1/2"]
[ECO "D30"]
[WhiteElo "1920"]
[BlackElo "2051"]
[Annotator "NA RC"]
[PlyCount "47"]
[EventDate "2024.07.01"]
[EventType "team-tourn"]
[EventCountry "POL"]
[SourceTitle "playchess.com"]
[Source "ChessBase"]
[SourceQuality "1"]
[TimeControl "40/5400+30:1800+30"]

1. d4 {[%emt 0:00:09]} d5 {[%emt 0:00:09]} 2. c4 {[%emt 0:00:14]} e6 {[%emt 0:00:06]} 3. Nf3 {[%emt 0:00:36]} Nf6 {[%emt 0:00:09]} 4. g3 {[%emt 0:00:14]} Bb4+ {[%emt 0:01:29]} 5. Bd2 {[%emt 0:00:16]} Be7 {[%emt 0:00:06]} 6. Bg2 {[%emt 0:00:32]} O-O {[%emt 0:01:27]} 7. Qc2 {[%emt 0:01:52]} b6 {[%emt 0:05:00]} 8. cxd5 {[%emt 0:04:43]} exd5 {[%emt 0:01:22]} 9. O-O {[%emt 0:00:31]} Bb7 {[%emt 0:10:23]} 10. Nc3 {[%emt 0:03:16]} Nbd7 {[%emt 0:06:38]} 11. Rfd1 {[%emt 0:07:04]} Re8 {[%emt 0:02:39]} 12. Bf4 {[%emt 0:01:24]} Nh5 {[%emt 0:07:00]} 13. Be3 {[%emt 0:02:06]} g6 {[%emt 0:04:25]} 14. Rac1 {[%emt 0:01:27]} c6 {[%emt 0:03:31]} 15. Bh6 {[%emt 0:06:13]} Nhf6 {[%emt 0:06:26]} 16. h3 {[%emt 0:09:40]} Bd6 {[%emt 0:06:49]} 17. Ng5 {[%emt 0:05:16]} Bf8 {[%emt 0:03:03]} 18. Bxf8 {[%emt 0:01:29]} Nxf8 {[%emt 0:00:05]} 19. Nf3 {[%emt 0:06:31]} N8d7 {[%emt 0:01:06]} 20. Nd2 {[%emt 0:01:35]} Rc8 {[%emt 0:11:31]} 21. e4 {[%emt 0:03:45]} dxe4 {[%emt 0:01:03]} 22. Ndxe4 {[%emt 0:00:36]} Nxe4 {[%emt 0:00:11]} 23. Nxe4 {[%emt 0:00:21]} Nf6 {[%emt 0:00:16]} 24. Nxf6+ {[%emt 0:04:27]} 1/2-1/2

[Event "WSTCC-50 2024"]
[Site "Krakow"]
[Date "2024.07.07"]
[Round "6.16"]
[White "Buriene, Regina"]
[Black "Korge, Kersti"]
[Result "1/2-1/2"]
[ECO "B01"]
[WhiteElo "1904"]
[BlackElo "1859"]
[Annotator "NA RC"]
[PlyCount "38"]
[EventDate "2024.07.01"]
[EventType "team-tourn"]
[EventCountry "POL"]
[SourceTitle "playchess.com"]
[Source "ChessBase"]
[SourceQuality "1"]
[TimeControl "40/5400+30:1800+30"]

1. e4 {[%emt 0:00:07]} d5 {[%emt 0:00:06]} 2. exd5 {[%emt 0:07:08]} Qxd5 {[%emt 0:00:08]} 3. d4 {[%emt 0:13:57]} c6 {[%emt 0:06:54]} 4. Nc3 {[%emt 0:01:16]} Qd6 {[%emt 0:00:48]} 5. Nf3 {[%emt 0:02:52]} Nf6 {[%emt 0:01:24]} 6. Be2 {[%emt 0:00:27]} Bg4 {[%emt 0:00:46]} 7. h3 {[%emt 0:00:21]} Bh5 {[%emt 0:00:16]} 8. O-O {[%emt 0:06:19]} e6 {[%emt 0:01:40]} 9. Re1 {[%emt 0:02:02]} Be7 {[%emt 0:00:40]} 10. a3 {[%emt 0:01:14]} O-O {[%emt 0:00:23]} 11. Ne5 {[%emt 0:00:12]} Bxe2 {[%emt 0:00:11]} 12. Nxe2 {[%emt 0:00:26]} Nbd7 {[%emt 0:03:26]} 13. Bf4 {[%emt 0:04:28]} Nxe5 {[%emt 0:02:16]} 14. dxe5 {[%emt 0:05:26]} Qxd1 {[%emt 0:01:30]} 15. Raxd1 {[%emt 0:00:12]} Nd5 {[%emt 0:00:07]} 16. Rd3 {[%emt 0:08:28]} Nxf4 {[%emt 0:01:16]} 17. Nxf4 {[%emt 0:00:02]} Rfd8 {[%emt 0:00:24]} 18. Red1 {[%emt 0:00:08]} Rxd3 {[%emt 0:00:26]} 19. Rxd3 {[%emt 0:00:06]} Rd8 {[%emt 0:00:06]} 1/2-1/2

[Event "WSTCC-50 2024"]
[Site "Krakow"]
[Date "2024.07.07"]
[Round "6.17"]
[White "Lima, Darcy"]
[Black "Crocker, Philip J"]
[Result "1/2-1/2"]
[ECO "A20"]
[WhiteElo "2392"]
[BlackElo "2122"]
[Annotator "TA"]
[PlyCount "71"]
[EventDate "2024.07.01"]
[EventType "team-tourn"]
[EventCountry "POL"]
[SourceTitle "playchess.com"]
[Source "ChessBase"]
[SourceQuality "1"]
[TimeControl "40/5400+30:1800+30"]

{[%evp 10,71,20,0,0,0,0,-45,-33,-31,-13,-25,-12,-17,-19,-40,-39,-43,-41,-57,-41,-48,-48,-60,-46,-50,-31,-53,17,18,16,17,13,14,11,0,0,0,0,0,0,0,0,0,4,0,0,0,0,0,0,0,0,0,0,0,0,0,25,17,11,0,8,-8]} 1. c4 {[%emt 0:00:02]} e5 {[%emt 0:00:27]} 2. g3 {[%emt 0:00:08]} c6 {[%emt 0:00:48]} 3. Nf3 {[%emt 0:02:30]} e4 {[%emt 0:00:24]} 4. Nd4 {[%emt 0:00:05]} d5 {[%emt 0:00:21]} 5. cxd5 {[%emt 0:00:19]} Qxd5 {[%emt 0:00:21]} 6. e3 {[%emt 0:02:16]} Bc5 {[%emt 0:02:38]} 7. Nc3 {[%emt 0:02:04]} Qe5 {[%emt 0:00:49][%cal Og8f6]} 8. Nb3 {[%emt 0:15:10] [#] Strongly threatening f4.} Bb6 {[%emt 0:01:11] Black is slightly better.} 9. d4 {[%emt 0:00:51]} exd3 {[%emt 0:01:54]} 10. Qxd3 {[%emt 0:03:06]} Nf6 {[%emt 0:02:04] Dodges Ne4} 11. Bg2 {[%emt 0:00:06]} O-O {[%emt 0:01:14]} 12. O-O {[%emt 0:03:49]} Rd8 {[%emt 0:03:12]} 13. Qe2 {[%emt 0:00:08]} Bg4 {[%emt 0:04:06]} 14. f3 {[%emt 0:00:17]} Bf5 {[%emt 0:02:28]} 15. Rd1 {[%emt 0:04:18] Inhibits Bd3.} Na6 {[%emt 0:02:22] [#] White must now prevent ...Nb4.} 16. Kh1 $1 {[%emt 0:01:07]} Rxd1+ {[%emt 0:10:54]} 17. Nxd1 {[%emt 0:00:19]} Rd8 {[%emt 0:02:04]} 18. e4 {[%emt 0:03:56]} Qe6 {[%emt 0:35:48]} (18... Be6 $15 19. Be3 Nb4) 19. Be3 $11 {[%emt 0:11:14]} Bh3 {[%emt 0:01:26]} 20. Bxh3 {[%emt 0:00:35]} Qxh3 {[%emt 0:00:05]} 21. Bxb6 {[%emt 0:03:23]} axb6 {[%emt 0:00:03]} 22. Ne3 {[%emt 0:03:25]} h5 {[%emt 0:02:07]} 23. Rd1 {[%emt 0:07:31]} Rxd1+ {[%emt 0:02:18]} 24. Nxd1 {[%emt 0:00:06]} Nc5 {[%emt 0:03:51]} 25. Nxc5 {[%emt 0:09:57]} bxc5 {[%emt 0:00:04][%mdl 4096] Endgame. KQN-KQN} 26. Nf2 {[%emt 0:07:11]} Qd7 {[%emt 0:02:38]} 27. Kg2 {[%emt 0:00:11]} Qd4 {[%emt 0:00:54]} 28. Qc2 {[%emt 0:05:06]} c4 {[%emt 0:02:28]} 29. b3 {[%emt 0:02:06]} cxb3 {[%emt 0:02:29]} 30. axb3 {[%emt 0:00:02]} Nd7 {[%emt 0:01:38]} 31. Qd3 {[%emt 0:00:45]} Qxd3 {[%emt 0:01:33]} 32. Nxd3 {[%emt 0:00:01]} c5 {[%emt 0:01:56]} 33. Kf2 {[%emt 0:00:33]} f6 {[%emt 0:01:56]} 34. Nf4 {[%emt 0:06:16]} Ne5 {[%emt 0:01:30]} 35. Ke3 {[%emt 0:03:38]} Nc6 {[%emt 0:04:08]} 36. Ne2 {Weighted Error Value: White=0.05 (flawless) /Black=0.06 (flawless) .  Mistake:       	---       	Black=1      Inaccurate:     	White=1     	---        OK:         	White=9     	Black=19     Best:        	White=1     	Black=1      Strong:       	White=1     	---} (36. Nd3 $5 b6 $8 37. Nb2 $11) 1/2-1/2

[Event "WSTCC-50 2024"]
[Site "Krakow"]
[Date "2024.07.07"]
[Round "6.17"]
[White "Mertens, Marc"]
[Black "Delaney, John"]
[Result "1-0"]
[ECO "B30"]
[WhiteElo "2142"]
[BlackElo "2167"]
[Annotator "RC"]
[PlyCount "77"]
[EventDate "2024.07.01"]
[EventType "team-tourn"]
[EventCountry "POL"]
[SourceTitle "playchess.com"]
[Source "ChessBase"]
[SourceQuality "1"]
[TimeControl "40/5400+30:1800+30"]

1. e4 {[%emt 0:00:03]} c5 {[%emt 0:00:15]} 2. Nf3 {[%emt 0:00:06]} Nc6 {[%emt 0:00:31]} 3. Bb5 {[%emt 0:00:25]} e6 {[%emt 0:03:29]} 4. O-O {[%emt 0:00:12]} Nge7 {[%emt 0:00:28]} 5. Re1 {[%emt 0:00:18]} Ng6 {[%emt 0:03:10]} 6. c3 {[%emt 0:04:35]} Be7 {[%emt 0:10:37]} 7. d4 {[%emt 0:00:23]} a6 {[%emt 0:03:31]} 8. Bf1 {[%emt 0:02:46]} cxd4 {[%emt 0:05:10]} 9. cxd4 {[%emt 0:00:08]} d5 {[%emt 0:00:10]} 10. Nc3 {[%emt 0:00:20]} b5 {[%emt 0:01:48]} 11. Bd3 {[%emt 0:17:18]} Nb4 {[%emt 0:07:17]} 12. exd5 {[%emt 0:10:06]} Nxd3 {[%emt 0:04:53]} 13. Qxd3 {[%emt 0:00:07]} exd5 {[%emt 0:02:37]} 14. Bg5 {[%emt 0:08:48]} f6 {[%emt 0:03:55]} 15. Bh4 {[%emt 0:00:52]} O-O {[%emt 0:03:43]} 16. Bg3 {[%emt 0:00:41]} f5 {[%emt 0:09:53]} 17. Be5 {[%emt 0:00:43]} f4 {[%emt 0:02:31]} 18. Nd2 {[%emt 0:05:15]} b4 {[%emt 0:01:29]} 19. Ne2 {[%emt 0:05:37]} Bf5 {[%emt 0:03:30]} 20. Qb3 {[%emt 0:03:29]} Bg4 {[%emt 0:09:05]} 21. f3 {[%emt 0:01:33]} Nxe5 {[%emt 0:00:27]} 22. dxe5 {[%emt 0:00:17]} Qb6+ {[%emt 0:00:18]} 23. Kh1 {[%emt 0:01:24]} Be6 {[%emt 0:01:45]} 24. Qd3 {[%emt 0:02:55]} Bc5 {[%emt 0:05:25]} 25. Nb3 {[%emt 0:01:41]} Bf2 {[%emt 0:00:37]} 26. Rec1 {[%emt 0:06:35]} Be3 {[%emt 0:03:05]} 27. Rc2 {[%emt 0:00:54]} Rf5 {[%emt 0:04:17]} 28. Nbd4 {[%emt 0:02:01]} Rh5 {[%emt 0:00:09]} 29. g3 {[%emt 0:06:50]} fxg3 {[%emt 0:08:11]} 30. Qxe3 {[%emt 0:00:21]} Rxh2+ {[%emt 0:01:25]} 31. Kg1 {[%emt 0:00:05]} Bh3 {[%emt 0:01:11]} 32. Nxg3 {[%emt 0:00:37]} Rxc2 {[%emt 0:00:25]} 33. Nxc2 {[%emt 0:00:05]} Qg6 {[%emt 0:00:23]} 34. Qf2 {[%emt 0:01:08]} Rc8 {[%emt 0:00:10]} 35. Nd4 {[%emt 0:02:40]} Rc4 {[%emt 0:00:35]} 36. Rd1 {[%emt 0:00:08]} h5 {[%emt 0:00:43]} 37. Kh2 {[%emt 0:00:20]} Bd7 {[%emt 0:00:12]} 38. Nge2 {[%emt 0:04:34]} Qg5 {[%emt 0:00:49]} 39. Qg3 {[%emt 0:00:37]} 1-0

[Event "WSTCC-50 2024"]
[Site "Krakow"]
[Date "2024.07.07"]
[Round "6.18"]
[White "Burrows, Martin P"]
[Black "Becker, Rogerio Sperb"]
[Result "1/2-1/2"]
[ECO "B33"]
[WhiteElo "2019"]
[BlackElo "2053"]
[Annotator "NA RC"]
[PlyCount "75"]
[EventDate "2024.07.01"]
[EventType "team-tourn"]
[EventCountry "POL"]
[SourceTitle "playchess.com"]
[Source "ChessBase"]
[SourceQuality "1"]
[TimeControl "40/5400+30:1800+30"]

1. e4 {[%emt 0:00:06]} c5 {[%emt 0:00:18]} 2. Nf3 {[%emt 0:00:05]} Nc6 {[%emt 0:00:20]} 3. d4 {[%emt 0:00:05]} cxd4 {[%emt 0:00:07]} 4. Nxd4 {[%emt 0:00:06]} Nf6 {[%emt 0:00:18]} 5. Nc3 {[%emt 0:00:06]} e5 {[%emt 0:00:32]} 6. Ndb5 {[%emt 0:00:06]} d6 {[%emt 0:00:16]} 7. Bg5 {[%emt 0:00:13]} a6 {[%emt 0:00:59]} 8. Na3 {[%emt 0:00:08]} b5 {[%emt 0:00:47]} 9. Nd5 {[%emt 0:00:17]} Be7 {[%emt 0:01:26]} 10. Bxf6 {[%emt 0:00:14]} Bxf6 {[%emt 0:00:27]} 11. c3 {[%emt 0:00:23]} Bg5 {[%emt 0:01:23]} 12. Nc2 {[%emt 0:00:18]} Rb8 {[%emt 0:02:17]} 13. a4 {[%emt 0:00:52]} bxa4 {[%emt 0:01:49]} 14. Ncb4 {[%emt 0:00:48]} Bd7 {[%emt 0:17:30]} 15. Bxa6 {[%emt 0:07:08]} Nxb4 {[%emt 0:02:22]} 16. cxb4 {[%emt 0:01:41]} O-O {[%emt 0:02:50]} 17. O-O {[%emt 0:01:15]} Bc6 {[%emt 0:04:06]} 18. Rxa4 {[%emt 0:02:15]} Bxa4 {[%emt 0:01:17]} 19. Qxa4 {[%emt 0:00:02]} Kh8 {[%emt 0:05:39]} 20. Bd3 {[%emt 0:08:36]} Qc8 {[%emt 0:02:22]} 21. b5 {[%emt 0:03:24]} Qc5 {[%emt 0:03:58]} 22. Qc4 {[%emt 0:06:09]} Qxc4 {[%emt 0:01:43]} 23. Bxc4 {[%emt 0:00:02]} Ra8 {[%emt 0:04:07]} 24. g3 {[%emt 0:07:54]} Bd8 {[%emt 0:05:19]} 25. Rc1 {[%emt 0:01:40]} Rb8 {[%emt 0:03:06]} 26. Bd3 {[%emt 0:08:41]} Bb6 {[%emt 0:00:58]} 27. Rc6 {[%emt 0:00:25]} Bd4 {[%emt 0:00:26]} 28. b4 {[%emt 0:20:30]} g6 {[%emt 0:07:57]} 29. Kg2 {[%emt 0:02:10]} Ra8 {[%emt 0:03:23]} 30. Ra6 {[%emt 0:01:32]} Kg7 {[%emt 0:00:50]} 31. g4 {[%emt 0:14:25]} h6 {[%emt 0:00:51]} 32. Kg3 {[%emt 0:01:23]} Rfc8 {[%emt 0:05:38]} 33. Kf3 {[%emt 0:04:38]} Rab8 {[%emt 0:04:07]} 34. Rc6 {[%emt 0:02:09]} Kf8 {[%emt 0:02:49]} 35. h4 {[%emt 0:03:24]} Ra8 {[%emt 0:02:08]} 36. Ra6 {[%emt 0:00:28]} Rab8 {[%emt 0:00:33]} 37. Rc6 {[%emt 0:01:09]} Ra8 {[%emt 0:00:13]} 38. Ra6 {[%emt 0:00:37]} 1/2-1/2

[Event "WSTCC-50 2024"]
[Site "Krakow"]
[Date "2024.07.07"]
[Round "6.19"]
[White "Santanna, Paulo"]
[Black "Fraser-Mitchell, Jeremy N"]
[Result "1-0"]
[ECO "C00"]
[WhiteElo "2020"]
[BlackElo "2036"]
[Annotator "RC"]
[PlyCount "99"]
[EventDate "2024.07.01"]
[EventType "team-tourn"]
[EventCountry "POL"]
[SourceTitle "playchess.com"]
[Source "ChessBase"]
[SourceQuality "1"]
[TimeControl "40/5400+30:1800+30"]

1. e4 {[%emt 0:00:03]} e6 {[%emt 0:00:38]} 2. d4 {[%emt 0:00:11]} a6 {[%emt 0:00:20]} 3. Nf3 {[%emt 0:00:33]} b5 {[%emt 0:00:05]} 4. Nbd2 {[%emt 0:01:39]} c5 {[%emt 0:00:11]} 5. a4 {[%emt 0:00:39]} b4 {[%emt 0:00:19]} 6. Bd3 {[%emt 0:00:44]} Bb7 {[%emt 0:00:36]} 7. O-O {[%emt 0:00:30]} Nf6 {[%emt 0:01:09]} 8. Qe2 {[%emt 0:05:09]} cxd4 {[%emt 0:11:45]} 9. Nxd4 {[%emt 0:01:19]} Qc7 {[%emt 0:00:44]} 10. N2b3 {[%emt 0:02:01]} Be7 {[%emt 0:03:42]} 11. Bg5 {[%emt 0:07:23]} Nc6 {[%emt 0:05:50]} 12. Nf3 {[%emt 0:00:56]} h6 {[%emt 0:11:19]} 13. Bh4 {[%emt 0:00:50]} Nh5 {[%emt 0:05:09]} 14. Bxe7 {[%emt 0:02:20]} Nxe7 {[%emt 0:00:17]} 15. Qd2 {[%emt 0:04:42]} a5 {[%emt 0:06:33]} 16. Nbd4 {[%emt 0:00:43]} O-O {[%emt 0:06:55]} 17. Rfe1 {[%emt 0:05:23]} Qf4 {[%emt 0:03:19]} 18. Qe2 {[%emt 0:04:03]} Qc7 {[%emt 0:04:19]} 19. g3 {[%emt 0:00:41]} Nf6 {[%emt 0:05:30]} 20. Rad1 {[%emt 0:11:31]} Qc5 {[%emt 0:02:49]} 21. e5 {[%emt 0:08:33]} Nfd5 {[%emt 0:00:46]} 22. Qe4 {[%emt 0:05:38]} g6 {[%emt 0:00:33]} 23. Qg4 {[%emt 0:16:07]} Kg7 {[%emt 0:10:30]} 24. h4 {[%emt 0:01:07]} h5 {[%emt 0:05:10]} 25. Qg5 {[%emt 0:01:16]} Ng8 {[%emt 0:00:50]} 26. Be4 {[%emt 0:06:01]} Rab8 {[%emt 0:01:34]} 27. Nb5 {[%emt 0:01:23]} Nde7 {[%emt 0:04:57]} 28. Bxb7 {[%emt 0:03:16]} Rxb7 {[%emt 0:00:12]} 29. Nd6 {[%emt 0:00:23]} Rc7 {[%emt 0:00:24]} 30. Nd4 {[%emt 0:01:29]} Nd5 {[%emt 0:03:38]} 31. Rd3 {[%emt 0:02:21]} Ra7 {[%emt 0:01:30]} 32. g4 {[%emt 0:04:23]} hxg4 {[%emt 0:01:00]} 33. h5 {[%emt 0:00:25]} Nde7 {[%emt 0:02:44]} 34. Re4 {[%emt 0:01:32]} Rc7 {[%emt 0:00:54]} 35. Rxg4 {[%emt 0:01:02]} f5 {[%emt 0:00:52]} 36. exf6+ {[%emt 0:01:37]} Nxf6 {[%emt 0:00:23]} 37. h6+ {[%emt 0:00:35]} Kh7 {[%emt 0:00:04]} 38. Qxc5 {[%emt 0:00:22]} Rxc5 {[%emt 0:00:01]} 39. Rh4 {[%emt 0:00:32]} e5 {[%emt 0:00:53]} 40. Nb3 {[%emt 0:00:29]} Rxc2 {[%emt 0:00:16]} 41. Nxa5 {[%emt 0:01:10]} Rxb2 {[%emt 0:00:12]} 42. Nac4 {[%emt 0:00:50]} Rb1+ {[%emt 0:00:17]} 43. Kg2 {[%emt 0:00:16]} Nc6 {[%emt 0:00:40]} 44. Ne4 {[%emt 0:01:08]} Nh5 {[%emt 0:00:43]} 45. Rxd7+ {[%emt 0:00:42]} Kxh6 {[%emt 0:00:02]} 46. Ne3 {[%emt 0:04:53]} Rf4 {[%emt 0:01:34]} 47. Ng4+ {[%emt 0:01:16]} Rxg4+ {[%emt 0:00:08]} 48. Rxg4 {[%emt 0:00:03]} Nf4+ {[%emt 0:00:30]} 49. Kh2 {[%emt 0:00:31]} Re1 {[%emt 0:03:44]} 50. Ng5 {[%emt 0:03:50]} 1-0

[Event "WSTCC-50 2024"]
[Site "Krakow"]
[Date "2024.07.07"]
[Round "6.19"]
[White "Kohnen, Marc"]
[Black "Lyons, Brendan"]
[Result "0-1"]
[ECO "B27"]
[WhiteElo "1837"]
[BlackElo "1920"]
[Annotator "NA RC"]
[PlyCount "52"]
[EventDate "2024.07.01"]
[EventType "team-tourn"]
[EventCountry "POL"]
[SourceTitle "playchess.com"]
[Source "ChessBase"]
[SourceQuality "1"]
[TimeControl "40/5400+30:1800+30"]

1. e4 {[%emt 0:00:04]} c5 {[%emt 0:00:22]} 2. Nf3 {[%emt 0:00:13]} g6 {[%emt 0:00:11]} 3. d4 {[%emt 0:00:38]} cxd4 {[%emt 0:00:05]} 4. Qxd4 {[%emt 0:01:43]} Nf6 {[%emt 0:00:09]} 5. e5 {[%emt 0:00:36]} Nc6 {[%emt 0:00:04]} 6. Qd1 {[%emt 0:04:14]} Nxe5 {[%emt 0:00:25]} 7. Nc3 {[%emt 0:02:06]} Nxf3+ {[%emt 0:01:32]} 8. Qxf3 {[%emt 0:00:09]} Bg7 {[%emt 0:00:13]} 9. Bc4 {[%emt 0:01:40]} O-O {[%emt 0:01:12]} 10. O-O {[%emt 0:00:57]} Qc7 {[%emt 0:06:32]} 11. Bb3 {[%emt 0:01:45]} d6 {[%emt 0:04:56]} 12. Bg5 {[%emt 0:01:20]} Qc6 {[%emt 0:18:23]} 13. Bd5 {[%emt 0:15:50]} Qb6 {[%emt 0:19:37]} 14. Bb3 {[%emt 0:02:41]} Be6 {[%emt 0:09:06]} 15. Rfe1 {[%emt 0:03:26]} h6 {[%emt 0:11:15]} 16. Bxe6 {[%emt 0:03:54]} fxe6 {[%emt 0:02:12]} 17. Bd2 {[%emt 0:03:00]} d5 {[%emt 0:05:37]} 18. Qg3 {[%emt 0:01:39]} Kh7 {[%emt 0:01:48]} 19. Ne2 {[%emt 0:04:42]} Ne4 {[%emt 0:01:36]} 20. Be3 {[%emt 0:03:02]} Nxg3 {[%emt 0:01:09]} 21. Bxb6 {[%emt 0:00:07]} Nxe2+ {[%emt 0:00:09]} 22. Rxe2 {[%emt 0:00:06]} axb6 {[%emt 0:00:14]} 23. Rxe6 {[%emt 0:00:19]} Rf7 {[%emt 0:03:00]} 24. Rxb6 {[%emt 0:00:56]} Bd4 {[%emt 0:01:18]} 25. Rxb7 {[%emt 0:00:30]} Rxf2 {[%emt 0:00:23]} 26. Rxe7+ {[%emt 0:00:16]} Rf7+ {[%emt 0:00:05]} 0-1